fUST/lending_fUST_20250827
["ID","MTS","AMOUNT","RATE_DAILY","PERIOD"]
[381629090,1756299106051,-480.0,0.00023561,2]
[381629091,1756299106066,-576.96,0.00023561,2]
[381629092,1756299106082,-1354.76,0.00023561,2]
[381629093,1756299106279,-2286.82,0.00023561,2]
[381629094,1756299106289,-480.0,0.00023561,2]
[381629095,1756299106299,-1707.9,0.00023561,2]
[381629096,1756299106309,-812.92,0.00023561,2]
[381629097,1756299106318,-480.0,0.00023561,2]
[381629098,1756299106331,-1062.67,0.00023561,2]
[381629099,1756299106341,-739.93,0.00023561,2]
[381629100,1756299106350,-3535.34,0.00023561,2]
[381629101,1756299106360,-550.73,0.00023561,2]
[381629102,1756299106370,-679.72,0.00023561,2]
[381629103,1756299106380,-829.46,0.00023561,2]
[381629104,1756299106394,-695.89,0.00023561,2]
[381629105,1756299106404,-577.42,0.00023561,2]
[381629106,1756299106413,-680.83,0.00023561,2]
[381629107,1756299106423,-600.93,0.00023561,2]
[381629108,1756299106432,-480.0,0.00023561,2]
[381629109,1756299106441,-1995.59,0.00023561,2]
[381629110,1756299106450,-480.0,0.00023561,2]
[381629111,1756299106460,-1631.46,0.00023561,2]
[381629112,1756299106469,-1590.45,0.00023561,2]
[381629113,1756299106479,-539.05,0.00023561,2]
[381629114,1756299106489,-712.28,0.00023561,2]
[381629115,1756299106498,-266.71,0.00023561,2]
[381629116,1756299106507,-266.71,0.00023561,2]
[381629117,1756299106517,-266.71,0.00023561,2]
[381629118,1756299106526,-266.71,0.00023561,2]
[381629119,1756299106535,-638.72,0.00023561,2]
[381629120,1756299106544,-266.71,0.00023561,2]
[381629121,1756299106553,-266.71,0.00023561,2]
[381629122,1756299106562,-266.71,0.00023561,2]
[381629123,1756299106571,-390.95961972,0.00023561,2]
[381629124,1756299106580,-480.0,0.00023561,2]
[381629125,1756299106589,-480.0,0.00023561,2]
[381629126,1756299106598,-480.0,0.00023561,2]
[381629127,1756299106607,-755.02,0.00023561,2]
[381629128,1756299106616,-480.0,0.00023561,2]
[381629129,1756299106627,-789.18,0.00023561,2]
[381629130,1756299106636,-685.55,0.00023561,2]
[381629131,1756299106645,-480.0,0.00023561,2]
[381629132,1756299106654,-2224.28,0.00023561,2]
[381629133,1756299106663,-480.0,0.00023561,2]
[381629134,1756299106673,-622.18,0.00023561,2]
[381629135,1756299106685,-1015.89,0.00023561,2]
[381629136,1756299106695,-480.0,0.00023561,2]
[381629137,1756299106704,-480.0,0.00023561,2]
[381629138,1756299106714,-1801.64,0.00023561,2]
[381629139,1756299106725,-631.08,0.00023561,2]
[381629140,1756299106734,-480.0,0.00023561,2]
[381629141,1756299106743,-678.47,0.00023561,2]
[381629142,1756299106753,-480.0,0.00023561,2]
[381629143,1756299106763,-908.23,0.00023561,2]
[381629144,1756299106774,-480.0,0.00023561,2]
[381629145,1756299106783,-698.69,0.00023561,2]
[381629146,1756299106792,-2888.9,0.00023561,2]
[381629147,1756299106801,-480.0,0.00023561,2]
[381629148,1756299106811,-480.0,0.00023561,2]
[381629149,1756299106820,-901.06,0.00023561,2]
[381629150,1756299106829,-480.0,0.00023561,2]
[381629151,1756299106839,-480.0,0.00023561,2]
[381629152,1756299106849,-1290.3,0.00023561,2]
[381629153,1756299106858,-1110.35,0.00023561,2]
[381629154,1756299106867,-911.51,0.00023561,2]
[381629155,1756299106876,-711.28,0.00023561,2]
[381629156,1756299106886,-492.57,0.00023561,2]
[381629157,1756299106895,-450.0,0.00023562,2]
[381629158,1756299106904,-151.0,0.00023568,7]
[381629159,1756299106913,-151.0,0.00023568,7]
[381629160,1756299106924,-3251.23278802,0.00023574,2]
[381629161,1756299106933,-988.203,0.00023607,2]
[381629162,1756299106942,-638.0,0.00023607,2]
[381629163,1756299106952,-2157.0,0.00023607,2]
[381629164,1756299106961,-289.974,0.00023607,2]
[381629165,1756299106971,-3000.0,0.00023673,2]
[381629166,1756299106980,-2080.57302043,0.00023673,2]
[381629167,1756299106990,-3000.0,0.00023673,2]
[381629168,1756299106999,-3000.0,0.00023673,2]
[381629169,1756299107008,-3000.0,0.00023673,2]
[381629170,1756299107017,-2405.099618,0.00023697,2]
[381629171,1756299107027,-4179.54682404,0.000237,14]
[381629172,1756299107036,-708.5307502,0.0002371,2]
[381629173,1756299107045,-1000.0,0.00023725,2]
[381629174,1756299107055,-1785.15167977,0.00023765,2]
[381629175,1756299107064,-243.20449079,0.00023765,2]
[381629176,1756299107074,-500.0,0.0002378,2]
[381629177,1756299107084,-1015.0,0.00023832,2]
[381629178,1756299107095,-480.0,0.00023835,2]
[381629179,1756299107104,-540.35482437,0.00023835,2]
[381629180,1756299107114,-480.0,0.00023835,2]
[381629181,1756299107125,-480.0,0.00023835,2]
[381629182,1756299107135,-480.0,0.00023835,2]
[381629183,1756299107145,-480.0,0.00023835,2]
[381629184,1756299107154,-480.0,0.00023835,2]
[381629185,1756299107164,-480.0,0.00023835,2]
[381629186,1756299107173,-493.86,0.00023835,2]
[381629187,1756299107182,-480.0,0.00023835,2]
[381629188,1756299107192,-251.13491911,0.00023835,2]
[381629189,1756299107201,-480.0,0.00023835,2]
[381629190,1756299107210,-480.0,0.00023835,2]
[381629191,1756299107220,-562.7,0.00023835,2]
[381629192,1756299107230,-524.95,0.00023835,2]
[381629193,1756299107240,-480.0,0.00023835,2]
[381629194,1756299107251,-538.52,0.00023835,2]
[381629195,1756299107260,-550.62,0.00023835,2]
[381629196,1756299107270,-480.0,0.00023835,2]
[381629197,1756299107279,-480.0,0.00023835,2]
[381629198,1756299107289,-576.16,0.00023835,2]
[381629199,1756299107298,-662.66,0.00023835,2]
[381629200,1756299107307,-582.51,0.00023835,2]
[381629201,1756299107317,-480.0,0.00023835,2]
[381629202,1756299107326,-500.0,0.00023835,2]
[381629203,1756299107336,-480.0,0.00023835,2]
[381629204,1756299107345,-480.0,0.00023835,2]
[381629205,1756299107355,-480.0,0.00023835,2]
[381629206,1756299107364,-523.83,0.00023835,2]
[381629207,1756299107373,-480.0,0.00023835,2]
[381629208,1756299107382,-480.0,0.00023835,2]
[381629209,1756299107392,-480.0,0.00023835,2]
[381629210,1756299107401,-606.2,0.00023835,2]
[381629211,1756299107410,-706.9,0.00023835,2]
[381629212,1756299107420,-480.0,0.00023835,2]
[381629213,1756299107430,-882.63,0.00023835,2]
[381629214,1756299107442,-480.0,0.00023835,2]
[381629215,1756299107452,-480.0,0.00023835,2]
[381629216,1756299107461,-480.0,0.00023835,2]
[381629217,1756299107471,-714.33,0.00023835,2]
[381629218,1756299107480,-612.47,0.00023835,2]
[381629219,1756299107493,-480.0,0.00023835,2]
[381629220,1756299107504,-480.0,0.00023835,2]
[381629221,1756299107514,-480.0,0.00023835,2]
[381629222,1756299107523,-480.0,0.00023835,2]
[381629223,1756299107533,-480.0,0.00023835,2]
[381629224,1756299107542,-480.0,0.00023835,2]
[381629225,1756299107552,-512.19,0.00023835,2]
[381629226,1756299107562,-480.0,0.00023835,2]
[381629227,1756299107572,-509.06,0.00023835,2]
[381629228,1756299107582,-612.82,0.00023835,2]
[381629229,1756299107592,-627.14,0.00023835,2]
[381629230,1756299107601,-480.0,0.00023835,2]
[381629231,1756299107611,-624.19,0.00023835,2]
[381629232,1756299107621,-481.22,0.00023835,2]
[381629233,1756299107630,-544.36530645,0.00023835,2]
[381629234,1756299107639,-528.91,0.00023835,2]
[381629235,1756299107649,-608.41,0.00023835,2]
[381629236,1756299107659,-320.55011623,0.00023835,2]
[381629237,1756299107668,-480.0,0.00023835,2]
[381629238,1756299107681,-547.44,0.00023835,2]
[381629239,1756299107694,-480.0,0.00023835,2]
[381629240,1756299107703,-480.0,0.00023835,2]
[381629241,1756299107713,-480.0,0.00023835,2]
[381629242,1756299107724,-967.44,0.00023835,2]
[381629243,1756299107734,-522.91,0.00023835,2]
[381629244,1756299107745,-480.0,0.00023835,2]
[381629245,1756299107755,-486.45,0.00023835,2]
[381629246,1756299107766,-624.58,0.00023835,2]
[381629247,1756299107776,-480.0,0.00023835,2]
[381629248,1756299107786,-520.88314177,0.00023835,2]
[381629249,1756299107795,-480.0,0.00023835,2]
[381629250,1756299107804,-480.0,0.00023835,2]
[381629251,1756299107813,-480.0,0.00023835,2]
[381629252,1756299107823,-1513.62,0.00023835,2]
[381629253,1756299107832,-740.6,0.00023835,2]
[381629254,1756299107841,-1456.95,0.00023835,2]
[381629255,1756299107850,-561.33,0.00023835,2]
[381629256,1756299107859,-480.0,0.00023835,2]
[381629257,1756299107869,-1610.42,0.00023835,2]
[381629258,1756299107878,-507.15,0.00023835,2]
[381629259,1756299107887,-480.0,0.00023835,2]
[381629260,1756299107896,-480.0,0.00023835,2]
[381629261,1756299107906,-628.11,0.00023835,2]
[381629262,1756299107915,-569.45,0.00023835,2]
[381629263,1756299107926,-480.0,0.00023835,2]
[381629264,1756299107935,-1196.37,0.00023835,2]
[381629265,1756299107945,-1184.81,0.00023835,2]
[381629266,1756299107955,-480.0,0.00023835,2]
[381629267,1756299107964,-595.51,0.00023835,2]
[381629268,1756299107973,-680.85,0.00023835,2]
[381629269,1756299107983,-974.71,0.00023835,2]
[381629270,1756299107992,-480.0,0.00023835,2]
[381629271,1756299108001,-260.29226006,0.00023835,2]
[381629272,1756299108010,-480.0,0.00023835,2]
[381629273,1756299108019,-642.37,0.00023835,2]
[381629274,1756299108029,-480.0,0.00023835,2]
[381629275,1756299108038,-480.0,0.00023835,2]
[381629276,1756299108047,-480.0,0.00023835,2]
[381629277,1756299108057,-480.0,0.00023835,2]
[381629278,1756299108066,-620.04,0.00023835,2]
[381629279,1756299108075,-1799.04,0.00023835,2]
[381629280,1756299108084,-888.29,0.00023835,2]
[381629281,1756299108094,-511.13,0.00023835,2]
[381629282,1756299108103,-615.79,0.00023835,2]
[381629283,1756299108113,-480.0,0.00023835,2]
[381629284,1756299108122,-1249.5,0.00023835,2]
[381629285,1756299108131,-837.84,0.00023835,2]
[381629286,1756299108141,-488.18,0.00023835,2]
[381629287,1756299108150,-480.0,0.00023835,2]
[381629288,1756299108160,-841.78,0.00023835,2]
[381629289,1756299108169,-818.54,0.00023835,2]
[381629290,1756299108178,-634.58,0.00023835,2]
[381629291,1756299108188,-480.0,0.00023835,2]
[381629292,1756299108197,-480.0,0.00023835,2]
[381629293,1756299108206,-480.0,0.00023835,2]
[381629294,1756299108216,-1132.23,0.00023835,2]
[381629295,1756299108225,-480.0,0.00023835,2]
[381629296,1756299108234,-480.0,0.00023835,2]
[381629297,1756299108244,-630.18,0.00023835,2]
[381629298,1756299108253,-1020.11,0.00023835,2]
[381629299,1756299108263,-480.0,0.00023835,2]
[381629300,1756299108273,-987.21,0.00023835,2]
[381629301,1756299108282,-480.0,0.00023835,2]
[381629302,1756299108292,-480.0,0.00023835,2]
[381629303,1756299108301,-480.0,0.00023835,2]
[381629304,1756299108310,-561.06,0.00023835,2]
[381629305,1756299108320,-480.0,0.00023835,2]
[381629306,1756299108329,-544.78,0.00023835,2]
[381629307,1756299108340,-655.34,0.00023835,2]
[381629308,1756299108350,-561.11378429,0.00023835,2]
[381629309,1756299108359,-660.63,0.00023835,2]
[381629310,1756299108369,-1338.48,0.00023835,2]
[381629311,1756299108378,-935.85,0.00023835,2]
[381629312,1756299108388,-480.0,0.00023835,2]
[381629313,1756299108397,-480.0,0.00023835,2]
[381629314,1756299108407,-775.56,0.00023835,2]
[381629315,1756299108416,-480.0,0.00023835,2]
[381629316,1756299108427,-480.0,0.00023835,2]
[381629317,1756299108436,-651.24,0.00023835,2]
[381629318,1756299108445,-480.0,0.00023835,2]
[381629319,1756299108455,-1057.73,0.00023835,2]
[381629320,1756299108464,-761.3,0.00023835,2]
[381629321,1756299108474,-631.68,0.00023835,2]
[381629322,1756299108483,-520.4,0.00023835,2]
[381629323,1756299108492,-628.89,0.00023835,2]
[381629324,1756299108502,-733.13,0.00023835,2]
[381629325,1756299108511,-480.0,0.00023835,2]
[381629326,1756299108521,-480.0,0.00023835,2]
[381629327,1756299108530,-480.0,0.00023835,2]
[381629328,1756299108540,-1793.19,0.00023835,2]
[381629329,1756299108550,-1312.96,0.00023835,2]
[381629330,1756299108560,-480.0,0.00023835,2]
[381629331,1756299108570,-480.0,0.00023835,2]
[381629332,1756299108579,-480.0,0.00023835,2]
[381629333,1756299108588,-480.0,0.00023835,2]
[381629334,1756299108598,-594.15,0.00023835,2]
[381629335,1756299108608,-628.83,0.00023835,2]
[381629336,1756299108618,-480.0,0.00023835,2]
[381629337,1756299108627,-480.0,0.00023835,2]
[381629338,1756299108636,-480.0,0.00023835,2]
[381629339,1756299108646,-902.71,0.00023835,2]
[381629340,1756299108656,-512.66276859,0.00023835,2]
[381629341,1756299108666,-591.53,0.00023835,2]
[381629342,1756299108676,-480.0,0.00023835,2]
[381629343,1756299108689,-480.0,0.00023835,2]
[381629344,1756299108698,-480.0,0.00023835,2]
[381629345,1756299108708,-818.78,0.00023835,2]
[381629346,1756299108717,-480.0,0.00023835,2]
[381629347,1756299108726,-480.0,0.00023835,2]
[381629348,1756299108736,-858.98,0.00023835,2]
[381629349,1756299108746,-480.0,0.00023835,2]
[381629350,1756299108755,-746.51,0.00023835,2]
[381629351,1756299108764,-482.09601777,0.00023835,2]
[381629352,1756299108775,-480.0,0.00023835,2]
[381629353,1756299108784,-480.0,0.00023835,2]
[381629354,1756299108793,-285.64110379,0.00023835,2]
[381629355,1756299108803,-480.0,0.00023835,2]
[381629356,1756299108812,-625.32,0.00023835,2]
[381629357,1756299108822,-1365.1,0.00023835,2]
[381629358,1756299108831,-480.0,0.00023835,2]
[381629359,1756299108841,-480.0,0.00023835,2]
[381629360,1756299108850,-480.0,0.00023835,2]
[381629361,1756299108859,-497.34,0.00023835,2]
[381629362,1756299108868,-624.5,0.00023835,2]
[381629363,1756299108878,-497.34,0.00023835,2]
[381629364,1756299108887,-1152.04,0.00023835,2]
[381629365,1756299108897,-2015.87,0.00023835,2]
[381629366,1756299108907,-579.93,0.00023835,2]
[381629367,1756299108917,-599.34,0.00023835,2]
[381629368,1756299108926,-810.1,0.00023835,2]
[381629369,1756299108936,-793.74,0.00023835,2]
[381629370,1756299108945,-1099.58,0.00023835,2]
[381629371,1756299108954,-480.0,0.00023835,2]
[381629372,1756299108964,-480.0,0.00023835,2]
[381629373,1756299108974,-480.0,0.00023835,2]
[381629374,1756299108984,-480.0,0.00023835,2]
[381629375,1756299108994,-480.0,0.00023835,2]
[381629376,1756299109004,-736.43,0.00023835,2]
[381629377,1756299109014,-1838.61,0.00023835,2]
[381629378,1756299109023,-898.68,0.00023835,2]
[381629379,1756299109033,-480.0,0.00023835,2]
[381629380,1756299109042,-480.0,0.00023835,2]
[381629381,1756299109052,-916.71,0.00023835,2]
[381629382,1756299109062,-480.0,0.00023835,2]
[381629383,1756299109072,-480.0,0.00023835,2]
[381629384,1756299109081,-480.0,0.00023835,2]
[381629385,1756299109091,-480.0,0.00023835,2]
[381629386,1756299109100,-521.43,0.00023835,2]
[381629387,1756299109110,-480.0,0.00023835,2]
[381629388,1756299109120,-283.47180839,0.00023835,2]
[381629389,1756299109130,-539.62,0.00023835,2]
[381629390,1756299109139,-727.24,0.00023835,2]
[381629391,1756299109148,-480.0,0.00023835,2]
[381629392,1756299109158,-1170.25,0.00023835,2]
[381629393,1756299109168,-480.0,0.00023835,2]
[381629394,1756299109177,-1026.14,0.00023835,2]
[381629395,1756299109187,-909.76,0.00023835,2]
[381629396,1756299109196,-480.0,0.00023835,2]
[381629397,1756299109205,-480.0,0.00023835,2]
[381629398,1756299109215,-480.0,0.00023835,2]
[381629399,1756299109225,-962.75,0.00023835,2]
[381629400,1756299109234,-711.06,0.00023835,2]
[381629401,1756299109244,-1249.43,0.00023835,2]
[381629402,1756299109253,-480.0,0.00023835,2]
[381629403,1756299109263,-480.0,0.00023835,2]
[381629404,1756299109272,-480.0,0.00023835,2]
[381629405,1756299109282,-480.0,0.00023835,2]
[381629406,1756299109291,-480.0,0.00023835,2]
[381629407,1756299109300,-670.56,0.00023835,2]
[381629408,1756299109310,-780.75,0.00023835,2]
[381629409,1756299109319,-480.0,0.00023835,2]
[381629410,1756299109329,-633.62,0.00023835,2]
[381629411,1756299109339,-638.03,0.00023835,2]
[381629412,1756299109512,-480.0,0.00023835,2]
[381629413,1756299109522,-886.17,0.00023835,2]
[381629414,1756299109532,-1346.67,0.00023835,2]
[381629415,1756299109541,-480.0,0.00023835,2]
[381629416,1756299109551,-677.64,0.00023835,2]
[381629417,1756299109560,-480.0,0.00023835,2]
[381629418,1756299109570,-480.0,0.00023835,2]
[381629419,1756299109580,-480.0,0.00023835,2]
[381629420,1756299109590,-480.0,0.00023835,2]
[381629421,1756299109600,-741.13,0.00023835,2]
[381629422,1756299109609,-480.0,0.00023835,2]
[381629423,1756299109618,-952.53,0.00023835,2]
[381629424,1756299109627,-480.0,0.00023835,2]
[381629425,1756299109636,-635.74,0.00023835,2]
[381629426,1756299109646,-480.0,0.00023835,2]
[381629427,1756299109656,-480.0,0.00023835,2]
[381629428,1756299109666,-574.03,0.00023835,2]
[381629429,1756299109677,-508.7,0.00023835,2]
[381629430,1756299109690,-480.0,0.00023835,2]
[381629431,1756299109699,-687.48,0.00023835,2]
[381629432,1756299109709,-480.0,0.00023835,2]
[381629433,1756299109718,-1268.98,0.00023835,2]
[381629434,1756299109730,-480.0,0.00023835,2]
[381629435,1756299109740,-856.71,0.00023835,2]
[381629436,1756299109749,-480.0,0.00023835,2]
[381629437,1756299109761,-6495.25,0.00023835,2]
[381629438,1756299109771,-500.0,0.00023835,2]
[381629439,1756299109780,-636.86,0.00023835,2]
[381629440,1756299109790,-480.0,0.00023835,2]
[381629441,1756299109800,-905.99,0.00023835,2]
[381629442,1756299109809,-480.0,0.00023835,2]
[381629443,1756299109818,-524.69,0.00023835,2]
[381629444,1756299109828,-486.07,0.00023835,2]
[381629445,1756299109837,-1458.92,0.00023835,2]
[381629446,1756299109847,-837.39,0.00023835,2]
[381629447,1756299109857,-1847.92,0.00023835,2]
[381629448,1756299109866,-624.44,0.00023835,2]
[381629449,1756299109876,-771.49,0.00023835,2]
[381629450,1756299109886,-8247.96,0.00023835,2]
[381629451,1756299109895,-1529.63,0.00023835,2]
[381629452,1756299109904,-3400.62,0.00023835,2]
[381629453,1756299109913,-583.48,0.00023835,2]
[381629454,1756299109924,-480.0,0.00023835,2]
[381629455,1756299109934,-480.0,0.00023835,2]
[381629456,1756299109943,-480.0,0.00023835,2]
[381629457,1756299109954,-480.0,0.00023835,2]
[381629458,1756299109963,-1076.84,0.00023835,2]
[381629459,1756299109972,-1635.61,0.00023835,2]
[381629460,1756299109982,-480.0,0.00023835,2]
[381629461,1756299109992,-564.33,0.00023835,2]
[381629462,1756299110002,-480.0,0.00023835,2]
[381629463,1756299110011,-740.19,0.00023835,2]
[381629464,1756299110020,-1200.96,0.00023835,2]
[381629465,1756299110030,-1559.95,0.00023835,2]
[381629466,1756299110041,-480.0,0.00023835,2]
[381629467,1756299110052,-1003.43,0.00023835,2]
[381629468,1756299110062,-480.0,0.00023835,2]
[381629469,1756299110071,-655.25,0.00023835,2]
[381629470,1756299110081,-1004.24,0.00023835,2]
[381629471,1756299110092,-1160.02,0.00023835,2]
[381629472,1756299110102,-265.48481493,0.00023835,2]
[381629473,1756299110111,-626.39,0.00023835,2]
[381629474,1756299110120,-480.0,0.00023835,2]
[381629475,1756299110130,-404.93629926,0.00023835,2]
[381629476,1756299110140,-504.38,0.00023835,2]
[381629477,1756299110150,-480.0,0.00023835,2]
[381629478,1756299110160,-748.48,0.00023835,2]
[381629479,1756299110170,-868.0,0.00023835,2]
[381629480,1756299110180,-632.12,0.00023835,2]
[381629481,1756299110190,-656.18,0.00023835,2]
[381629482,1756299110199,-480.0,0.00023835,2]
[381629483,1756299110209,-480.0,0.00023835,2]
[381629484,1756299110219,-480.0,0.00023835,2]
[381629485,1756299110228,-515.28,0.00023835,2]
[381629486,1756299110237,-639.39,0.00023835,2]
[381629487,1756299110248,-1553.38,0.00023835,2]
[381629488,1756299110259,-860.92,0.00023835,2]
[381629489,1756299110269,-707.77,0.00023835,2]
[381629490,1756299110279,-480.0,0.00023835,2]
[381629491,1756299110289,-480.0,0.00023835,2]
[381629492,1756299110299,-621.34,0.00023835,2]
[381629493,1756299110308,-480.0,0.00023835,2]
[381629494,1756299110318,-507.0,0.00023835,2]
[381629495,1756299110327,-480.0,0.00023835,2]
[381629496,1756299110337,-961.78,0.00023835,2]
[381629497,1756299110346,-480.0,0.00023835,2]
[381629498,1756299110356,-2093.04,0.00023835,2]
[381629499,1756299110366,-481.67,0.00023835,2]
[381629500,1756299110376,-480.0,0.00023835,2]
[381629501,1756299110386,-906.46,0.00023835,2]
[381629502,1756299110396,-861.82,0.00023835,2]
[381629503,1756299110406,-480.0,0.00023835,2]
[381629504,1756299110416,-500.0,0.00023835,2]
[381629505,1756299110426,-1944.4,0.00023835,2]
[381629506,1756299110436,-480.0,0.00023835,2]
[381629507,1756299110446,-480.0,0.00023835,2]
[381629508,1756299110456,-480.0,0.00023835,2]
[381629509,1756299110465,-480.0,0.00023835,2]
[381629510,1756299110474,-756.21,0.00023835,2]
[381629511,1756299110484,-691.47,0.00023835,2]
[381629512,1756299110494,-669.41,0.00023835,2]
[381629513,1756299110504,-822.12,0.00023835,2]
[381629514,1756299110513,-664.01,0.00023835,2]
[381629515,1756299110523,-5734.46,0.00023835,2]
[381629516,1756299110532,-480.0,0.00023835,2]
[381629517,1756299110542,-480.0,0.00023835,2]
[381629518,1756299110551,-480.0,0.00023835,2]
[381629519,1756299110560,-480.0,0.00023835,2]
[381629520,1756299110570,-1472.58,0.00023835,2]
[381629521,1756299110580,-480.0,0.00023835,2]
[381629522,1756299110590,-480.0,0.00023835,2]
[381629523,1756299110599,-480.0,0.00023835,2]
[381629524,1756299110609,-1010.62,0.00023835,2]
[381629525,1756299110618,-746.58,0.00023835,2]
[381629526,1756299110628,-945.67,0.00023835,2]
[381629527,1756299110637,-820.03,0.00023835,2]
[381629528,1756299110646,-2419.42,0.00023835,2]
[381629529,1756299110656,-2003.06,0.00023835,2]
[381629530,1756299110665,-712.33,0.00023835,2]
[381629531,1756299110675,-632.8,0.00023835,2]
[381629532,1756299110688,-480.0,0.00023835,2]
[381629533,1756299110697,-1302.43,0.00023835,2]
[381629534,1756299110707,-480.0,0.00023835,2]
[381629535,1756299110717,-480.0,0.00023835,2]
[381629536,1756299110726,-879.19,0.00023835,2]
[381629537,1756299110736,-2358.04,0.00023835,2]
[381629538,1756299110746,-626.24,0.00023835,2]
[381629539,1756299110755,-571.94,0.00023835,2]
[381629540,1756299110765,-480.0,0.00023835,2]
[381629541,1756299110775,-1028.29,0.00023835,2]
[381629542,1756299110785,-480.0,0.00023835,2]
[381629543,1756299110794,-480.0,0.00023835,2]
[381629544,1756299110804,-760.04,0.00023835,2]
[381629545,1756299110813,-480.0,0.00023835,2]
[381629546,1756299110822,-480.0,0.00023835,2]
[381629547,1756299110831,-534.07,0.00023835,2]
[381629548,1756299110840,-480.0,0.00023835,2]
[381629549,1756299110850,-773.62,0.00023835,2]
[381629550,1756299110860,-480.0,0.00023835,2]
[381629551,1756299110870,-480.0,0.00023835,2]
[381629552,1756299110880,-579.37,0.00023835,2]
[381629553,1756299110890,-481.34,0.00023835,2]
[381629554,1756299110899,-480.0,0.00023835,2]
[381629555,1756299110909,-689.04,0.00023835,2]
[381629556,1756299110919,-3533.68,0.00023835,2]
[381629557,1756299110929,-558.49,0.00023835,2]
[381629558,1756299110938,-1078.58,0.00023835,2]
[381629559,1756299110948,-480.0,0.00023835,2]
[381629560,1756299110957,-480.0,0.00023835,2]
[381629561,1756299110967,-480.0,0.00023835,2]
[381629562,1756299110976,-480.0,0.00023835,2]
[381629563,1756299110986,-877.94,0.00023835,2]
[381629564,1756299110995,-657.92,0.00023835,2]
[381629565,1756299111005,-480.0,0.00023835,2]
[381629566,1756299111014,-541.91,0.00023835,2]
[381629567,1756299111024,-480.0,0.00023835,2]
[381629568,1756299111033,-680.84,0.00023835,2]
[381629569,1756299111044,-1306.03,0.00023835,2]
[381629570,1756299111053,-4136.98,0.00023835,2]
[381629571,1756299111063,-480.0,0.00023835,2]
[381629572,1756299111072,-611.17,0.00023835,2]
[381629573,1756299111082,-1546.75,0.00023835,2]
[381629574,1756299111091,-745.97,0.00023835,2]
[381629575,1756299111100,-483.6,0.00023835,2]
[381629576,1756299111109,-2253.99,0.00023835,2]
[381629577,1756299111119,-1237.23,0.00023835,2]
[381629578,1756299111128,-4927.91,0.00023835,2]
[381629579,1756299111138,-480.0,0.00023835,2]
[381629580,1756299111148,-727.85,0.00023835,2]
[381629581,1756299111157,-711.45,0.00023835,2]
[381629582,1756299111167,-681.98,0.00023835,2]
[381629583,1756299111177,-2444.85,0.00023835,2]
[381629584,1756299111187,-1897.45,0.00023835,2]
[381629585,1756299111196,-1837.84,0.00023835,2]
[381629586,1756299111206,-2263.07,0.00023835,2]
[381629587,1756299111215,-4617.09,0.00023835,2]
[381629588,1756299111224,-480.0,0.00023835,2]
[381629589,1756299111233,-867.08,0.00023835,2]